[Event "Rapid Tournament (RAP)"]
[Site "Biel, Switzerland"]
[Date "2026.07.12"]
[Round "8.41"]
[White "Schwab, Felix"]
[Black "Huang, Hsuan-Chen"]
[Result "0-1"]
[TimeControl "15 + 5"]
[WhiteTitle "-"]
[BlackTitle "-"]
[WhiteFideId "1311450"]
[BlackFideId "16303121"]
[WhiteElo "1945"]
[BlackElo "1648"]

1. e4 {[%clk 00:15:09]} c5 {[%clk 00:15:09]} {[%emt 00:00:02]} 2. Nf3 {[%clk
00:15:11]} {[%emt 00:00:02]} d6 {[%clk 00:15:12]} {[%emt 00:00:03]} 3. d4
{[%clk 00:15:16]} cxd4 {[%clk 00:15:16]} 4. Nxd4 {[%clk 00:15:20]} Nf6 {[%clk
00:15:20]} {[%emt 00:00:02]} 5. Nc3 {[%clk 00:15:24]} {[%emt 00:00:01]} a6
{[%clk 00:15:24]} 6. f3 {[%clk 00:15:27]} {[%emt 00:00:02]} e5 {[%clk
00:15:24]} {[%emt 00:00:05]} 7. Nb3 {[%clk 00:15:30]} {[%emt 00:00:02]} h5
{[%clk 00:15:20]} {[%emt 00:00:09]} 8. Bg5 {[%clk 00:14:43]} {[%emt 00:00:51]}
Be6 {[%clk 00:14:59]} {[%emt 00:00:27]} 9. Be2 {[%clk 00:14:13]} {[%emt
00:00:34]} Nbd7 {[%clk 00:14:52]} {[%emt 00:00:12]} 10. O-O {[%clk 00:13:42]}
{[%emt 00:00:37]} Be7 {[%clk 00:14:35]} {[%emt 00:00:21]} 11. f4 {[%clk
00:12:29]} {[%emt 00:01:18]} b5 {[%clk 00:13:15]} {[%emt 00:01:25]} 12. a4
{[%clk 00:10:14]} {[%emt 00:02:20]} bxa4 {[%clk 00:09:28]} {[%emt 00:03:52]} 13.
Rxa4 {[%clk 00:10:00]} {[%emt 00:00:19]} Qb6+ {[%clk 00:09:13]} {[%emt
00:00:20]} 14. Kh1 {[%clk 00:09:59]} {[%emt 00:00:06]} exf4 {[%clk 00:07:48]}
{[%emt 00:01:30]} 15. Bxf4 {[%clk 00:08:57]} {[%emt 00:01:07]} Bxb3 {[%clk
00:07:17]} {[%emt 00:00:36]} 16. cxb3 {[%clk 00:08:54]} {[%emt 00:00:08]} Nc5
{[%clk 00:07:12]} {[%emt 00:00:10]} 17. Nd5 {[%clk 00:06:40]} {[%emt 00:02:19]}
Nxd5 {[%clk 00:06:01]} {[%emt 00:01:16]} 18. Qxd5 {[%clk 00:06:33]} {[%emt
00:00:12]} O-O {[%clk 00:05:35]} {[%emt 00:00:31]} 19. Ra3 {[%clk 00:05:51]}
{[%emt 00:00:48]} Ne6 {[%clk 00:04:26]} {[%emt 00:01:14]} 20. Qxh5 {[%clk
00:04:13]} {[%emt 00:01:42]} Nxf4 {[%clk 00:04:16]} {[%emt 00:00:16]} 21. Rxf4
{[%clk 00:04:13]} {[%emt 00:00:04]} Qe3 {[%clk 00:04:14]} {[%emt 00:00:07]} 22.
Qf3 {[%clk 00:01:58]} {[%emt 00:02:20]} Qc1+ {[%clk 00:03:24]} {[%emt
00:00:55]} 23. Bf1 {[%clk 00:01:48]} {[%emt 00:00:15]} Rac8 {[%clk 00:02:47]}
{[%emt 00:00:42]} 24. Rxa6 {[%clk 00:01:10]} {[%emt 00:00:43]} Qxb2 {[%clk
00:02:49]} {[%emt 00:00:03]} 25. Ra7 {[%clk 00:00:55]} {[%emt 00:00:20]} Bf6
{[%clk 00:02:21]} {[%emt 00:00:33]} 26. Bc4 {[%clk 00:00:26]} {[%emt 00:00:34]}
d5 {[%clk 00:00:36]} {[%emt 00:01:50]} 27. exd5 {[%clk 00:00:12]} {[%emt
00:00:19]} Rfe8 {[%clk 00:00:41]} 28. h4 {[%clk 00:00:06]} {[%emt 00:00:10]}
Qc1+ {[%clk 00:00:37]} {[%emt 00:00:09]} 29. Qf1 {[%clk 00:00:07]} {[%emt
00:00:04]} Re1 {[%clk 00:00:41]} {[%emt 00:00:01]} 30. d6 {[%clk 00:00:08]}
{[%emt 00:00:05]} Rxf1+ {[%clk 00:00:35]} {[%emt 00:00:11]} 31. Rxf1 {[%clk
00:00:10]} {[%emt 00:00:02]} Qd2 {[%clk 00:00:21]} {[%emt 00:00:19]} 32. Rxf7
{[%clk 00:00:11]} {[%emt 00:00:04]} Rxc4 {[%clk 00:00:25]} {[%emt 00:00:02]} 33.
Rc7 {[%clk 00:00:06]} {[%emt 00:00:10]} Rxh4+ {[%clk 00:00:18]} {[%emt
00:00:11]} 0-1

[Event "Rapid Tournament (RAP)"]
[Site "Biel, Switzerland"]
[Date "2026.07.12"]
[Round "8.42"]
[White "Ranieri, Pierpaolo"]
[Black "Thomas, Vitus"]
[Result "1-0"]
[TimeControl "15 + 5"]
[WhiteTitle "-"]
[BlackTitle "-"]
[WhiteFideId "893986"]
[BlackFideId "1370790"]
[WhiteElo "1891"]
[BlackElo "1600"]

1. d4 d5 2. c4 c6 3. Nc3 Nf6 4. e3 g6 5. Nf3 Bg7 6. Be2 O-O 7. O-O Bf5 8. Qb3
Qc7 9. cxd5 cxd5 10. Nxd5 {[%clk 00:15:05]} Nxd5 {[%clk 00:14:42]} {[%emt
01:00:11]} 11. Qxd5 {[%clk 00:15:02]} Qc6 {[%clk 00:14:44]} {[%emt 00:00:04]}
12. Qb3 {[%clk 00:14:53]} {[%emt 00:00:16]} Be6 {[%clk 00:14:45]} {[%emt
00:00:03]} 13. Qb5 {[%clk 00:14:24]} {[%emt 00:00:35]} a6 {[%clk 00:14:42]}
{[%emt 00:00:08]} 14. Qxc6 {[%clk 00:14:26]} {[%emt 00:00:03]} Nxc6 {[%clk
00:14:43]} {[%emt 00:00:02]} 15. Rd1 {[%clk 00:14:20]} {[%emt 00:00:13]} Bf5
{[%clk 00:14:33]} {[%emt 00:00:13]} 16. Bd2 {[%clk 00:13:33]} {[%emt 00:00:54]}
e5 {[%clk 00:14:20]} {[%emt 00:00:17]} 17. Bc3 {[%clk 00:11:15]} {[%emt
00:02:24]} exd4 {[%clk 00:13:03]} {[%emt 00:01:22]} 18. Nxd4 {[%clk 00:11:13]}
{[%emt 00:00:07]} Nxd4 {[%clk 00:13:05]} {[%emt 00:00:02]} 19. Bxd4 {[%clk
00:11:16]} {[%emt 00:00:03]} Rac8 {[%clk 00:12:51]} {[%emt 00:00:17]} 20. Bxg7
{[%clk 00:11:05]} {[%emt 00:00:17]} Kxg7 {[%clk 00:12:53]} {[%emt 00:00:02]} 21.
Rac1 {[%clk 00:11:08]} {[%emt 00:00:03]} Be4 {[%clk 00:12:27]} {[%emt
00:00:31]} 22. f3 {[%clk 00:10:10]} {[%emt 00:01:03]} Bc6 {[%clk 00:12:29]}
{[%emt 00:00:02]} 23. Kf2 {[%clk 00:10:07]} {[%emt 00:00:09]} Rfd8 {[%clk
00:12:30]} {[%emt 00:00:03]} 24. e4 {[%clk 00:09:52]} {[%emt 00:00:21]} Kf6
{[%clk 00:12:25]} {[%emt 00:00:05]} 25. Ke3 {[%clk 00:09:36]} {[%emt 00:00:27]}
Ke5 {[%clk 00:11:58]} {[%emt 00:00:29]} 26. f4+ {[%clk 00:09:19]} {[%emt
00:00:24]} Kf6 {[%clk 00:11:26]} {[%emt 00:00:06]} 27. Bf3 {[%clk 00:09:24]}
Ke7 {[%emt 00:00:42]} 28. Rxd8 {[%emt 00:00:45]} Rxd8 {[%clk 00:10:31]} {[%emt
00:00:02]} 29. Rd1 {[%clk 00:09:24]} {[%emt 00:00:07]} Rc8 {[%clk 00:09:52]}
{[%emt 00:00:45]} 30. Rd2 {[%clk 00:09:20]} {[%emt 00:00:08]} Rc7 {[%clk
00:09:33]} {[%emt 00:00:24]} 31. g4 {[%clk 00:09:04]} {[%emt 00:00:22]} f6
{[%clk 00:09:09]} {[%emt 00:00:28]} 32. h4 {[%clk 00:08:59]} {[%emt 00:00:10]}
Rc8 {[%clk 00:09:00]} {[%emt 00:00:14]} 33. f5 {[%clk 00:06:53]} {[%emt
00:02:11]} Rh8 {[%clk 00:07:59]} {[%emt 00:01:04]} 34. Kf4 {[%clk 00:06:20]}
{[%emt 00:00:40]} Kf7 {[%clk 00:07:28]} {[%emt 00:00:35]} 35. g5 {[%clk
00:06:03]} {[%emt 00:00:24]} Ke7 {[%clk 00:07:20]} {[%emt 00:00:11]} 36. gxf6+
{[%clk 00:05:58]} {[%emt 00:00:11]} Kxf6 {[%clk 00:07:19]} {[%emt 00:00:05]} 37.
e5+ {[%clk 00:05:58]} {[%emt 00:00:07]} Ke7 {[%emt 00:00:06]} 38. Bxc6 {[%emt
00:00:11]} bxc6 {[%clk 00:07:05]} 39. f6+ {[%clk 00:05:56]} {[%emt 00:00:07]}
Ke8 {[%clk 00:07:04]} {[%emt 00:00:06]} 40. e6 {[%clk 00:05:45]} {[%emt
00:00:17]} Rf8 {[%clk 00:06:55]} {[%emt 00:00:13]} 41. Ke5 {[%clk 00:05:45]}
{[%emt 00:00:06]} 1-0

[Event "Rapid Tournament (RAP)"]
[Site "Biel, Switzerland"]
[Date "2026.07.12"]
[Round "8.43"]
[White "Berger, Vincent"]
[Black "Pinelli, Gian"]
[Result "0-1"]
[TimeControl "15 + 5"]
[WhiteTitle "-"]
[BlackTitle "-"]
[WhiteFideId "1317822"]
[BlackFideId "1348710"]
[WhiteElo "1877"]
[BlackElo "1774"]

1. f4 {[%clk 00:15:08]} {[%emt 00:00:01]} d5 {[%clk 00:15:04]} {[%emt
00:00:07]} 2. Nf3 {[%clk 00:15:11]} {[%emt 00:00:02]} Nf6 {[%clk 00:15:04]}
{[%emt 00:00:05]} 3. b3 {[%clk 00:15:10]} {[%emt 00:00:07]} c5 {[%clk
00:14:59]} {[%emt 00:00:10]} 4. e3 {[%clk 00:15:10]} {[%emt 00:00:04]} Nc6
{[%clk 00:15:02]} {[%emt 00:00:02]} 5. Bb5 {[%clk 00:15:12]} {[%emt 00:00:03]}
Bd7 {[%clk 00:15:01]} {[%emt 00:00:06]} 6. Bb2 {[%clk 00:15:14]} {[%emt
00:00:03]} a6 {[%clk 00:15:03]} {[%emt 00:00:03]} 7. Bxc6 {[%clk 00:15:16]}
{[%emt 00:00:03]} Bxc6 {[%clk 00:15:05]} {[%emt 00:00:03]} 8. Ne5 {[%clk
00:15:11]} {[%emt 00:00:10]} Qc7 {[%clk 00:15:04]} {[%emt 00:00:06]} 9. O-O
{[%clk 00:15:12]} {[%emt 00:00:05]} e6 {[%clk 00:14:50]} {[%emt 00:00:19]} 10.
d3 {[%clk 00:15:13]} {[%emt 00:00:03]} Bd6 {[%clk 00:14:51]} {[%emt 00:00:04]}
11. Nd2 {[%clk 00:15:15]} {[%emt 00:00:03]} h5 {[%clk 00:14:39]} {[%emt
00:00:17]} 12. Qe2 {[%clk 00:13:59]} {[%emt 00:01:21]} h4 {[%clk 00:14:21]}
{[%emt 00:00:23]} 13. Rae1 {[%clk 00:11:01]} {[%emt 00:03:04]} Nh5 {[%clk
00:12:54]} {[%emt 00:01:31]} 14. Nxc6 {[%clk 00:09:21]} {[%emt 00:01:45]} Qxc6
{[%clk 00:12:57]} {[%emt 00:00:03]} 15. Be5 {[%clk 00:08:24]} {[%emt 00:01:02]}
O-O-O {[%clk 00:12:31]} {[%emt 00:00:31]} 16. Qf3 {[%clk 00:06:57]} {[%emt
00:01:32]} Rh6 {[%clk 00:10:56]} {[%emt 00:01:39]} 17. c4 {[%clk 00:05:57]}
{[%emt 00:01:05]} f6 {[%clk 00:10:02]} {[%emt 00:00:59]} 18. cxd5 {[%clk
00:05:45]} {[%emt 00:00:18]} exd5 {[%clk 00:09:32]} {[%emt 00:00:34]} 19. Bxd6
{[%clk 00:05:44]} {[%emt 00:00:06]} Qxd6 {[%clk 00:09:27]} {[%emt 00:00:10]} 20.
Rc1 {[%clk 00:05:33]} {[%emt 00:00:16]} Kb8 {[%clk 00:09:17]} {[%emt 00:00:15]}
21. d4 {[%clk 00:04:45]} {[%emt 00:00:54]} cxd4 {[%clk 00:09:17]} {[%emt
00:00:05]} 22. exd4 {[%clk 00:04:39]} {[%emt 00:00:11]} g5 {[%clk 00:07:53]}
{[%emt 00:01:28]} 23. fxg5 {[%clk 00:03:16]} {[%emt 00:01:28]} fxg5 {[%clk
00:07:56]} {[%emt 00:00:02]} 24. Qg4 {[%clk 00:02:40]} {[%emt 00:00:41]} Nf4
{[%clk 00:07:12]} {[%emt 00:00:49]} 25. Rc3 {[%clk 00:02:33]} {[%emt 00:00:12]}
Re8 {[%clk 00:06:53]} {[%emt 00:00:25]} 26. Kh1 {[%clk 00:02:06]} {[%emt
00:00:32]} Ne2 {[%clk 00:04:57]} {[%emt 00:02:01]} 27. Rcf3 {[%clk 00:01:45]}
{[%emt 00:00:26]} Reh8 {[%clk 00:04:03]} {[%emt 00:00:58]} 28. Qxg5 {[%clk
00:00:30]} {[%emt 00:01:20]} Ng3+ {[%clk 00:03:15]} {[%emt 00:00:54]} 29. Rxg3
{[%clk 00:00:33]} {[%emt 00:00:02]} hxg3 {[%clk 00:02:34]} {[%emt 00:00:45]} 30.
h3 {[%clk 00:00:37]} Qd7 {[%clk 00:02:11]} {[%emt 00:00:28]} 31. Qf4+ {[%clk
00:00:20]} {[%emt 00:00:22]} Ka7 {[%clk 00:02:05]} {[%emt 00:00:11]} 32. Qxg3
{[%clk 00:00:22]} {[%emt 00:00:03]} Rxh3+ {[%clk 00:02:08]} {[%emt 00:00:02]}
33. gxh3 {[%clk 00:00:21]} {[%emt 00:00:06]} Rxh3+ {[%clk 00:02:12]} {[%emt
00:00:02]} 34. Qxh3 {[%clk 00:00:23]} {[%emt 00:00:02]} Qxh3+ {[%clk 00:02:15]}
{[%emt 00:00:02]} 35. Kg1 {[%clk 00:00:27]} {[%emt 00:00:01]} Qg3+ {[%clk
00:02:15]} {[%emt 00:00:05]} 36. Kh1 {[%clk 00:00:31]} {[%emt 00:00:01]} Qh4+
{[%clk 00:02:18]} {[%emt 00:00:02]} 37. Kg2 {[%clk 00:00:33]} {[%emt 00:00:03]}
Qg5+ {[%clk 00:02:22]} {[%emt 00:00:01]} 0-1

[Event "Rapid Tournament (RAP)"]
[Site "Biel, Switzerland"]
[Date "2026.07.12"]
[Round "8.44"]
[White "Gheorghiu, Gabriel-Ion"]
[Black "Bonanomi, Silvan"]
[Result "0-1"]
[TimeControl "15 + 5"]
[WhiteTitle "-"]
[BlackTitle "-"]
[WhiteFideId "1248820"]
[BlackFideId "1352644"]
[WhiteElo "1679"]
[BlackElo "1867"]

1. d4 {[%clk 00:15:07]} {[%emt 00:00:02]} Nf6 {[%clk 00:15:09]} {[%emt
00:00:02]} 2. c4 {[%clk 00:15:11]} {[%emt 00:00:02]} e6 {[%clk 00:15:12]}
{[%emt 00:00:01]} 3. Nc3 {[%clk 00:15:12]} {[%emt 00:00:04]} Bb4 {[%clk
00:15:15]} {[%emt 00:00:02]} 4. Qc2 {[%clk 00:15:09]} {[%emt 00:00:08]} c5
{[%clk 00:15:18]} {[%emt 00:00:02]} 5. e3 {[%clk 00:15:06]} {[%emt 00:00:09]}
O-O {[%clk 00:15:17]} {[%emt 00:00:05]} 6. Nf3 {[%clk 00:15:08]} {[%emt
00:00:03]} d5 {[%clk 00:15:20]} {[%emt 00:00:02]} 7. Bd3 {[%clk 00:15:03]}
{[%emt 00:00:09]} Nc6 {[%clk 00:15:19]} {[%emt 00:00:06]} 8. O-O {[%clk
00:14:56]} {[%emt 00:00:13]} cxd4 {[%clk 00:13:33]} {[%emt 00:01:51]} 9. cxd5
{[%clk 00:14:26]} {[%emt 00:00:35]} dxc3 {[%clk 00:11:53]} {[%emt 00:01:46]} 10.
dxc6 {[%clk 00:14:12]} {[%emt 00:00:19]} Nd5 {[%clk 00:10:19]} {[%emt
00:01:38]} 11. e4 {[%clk 00:13:13]} {[%emt 00:01:04]} cxb2 {[%clk 00:09:25]}
{[%emt 00:00:59]} 12. Bxb2 {[%clk 00:13:07]} {[%emt 00:00:10]} Nb6 {[%clk
00:09:25]} {[%emt 00:00:05]} 13. c7 {[%clk 00:12:36]} {[%emt 00:00:37]} Qe7
{[%clk 00:09:27]} {[%emt 00:00:03]} 14. a3 {[%clk 00:11:52]} {[%emt 00:00:49]}
Bd6 {[%clk 00:09:02]} {[%emt 00:00:30]} 15. Qc3 {[%clk 00:11:29]} {[%emt
00:00:27]} f6 {[%clk 00:08:59]} {[%emt 00:00:09]} 16. Qc2 {[%clk 00:10:42]}
{[%emt 00:00:53]} Qxc7 {[%clk 00:08:44]} {[%emt 00:00:19]} 17. Qxc7 {[%clk
00:09:50]} {[%emt 00:00:56]} Bxc7 {[%clk 00:08:47]} {[%emt 00:00:03]} 18. Rac1
{[%clk 00:09:44]} {[%emt 00:00:11]} Bd6 {[%clk 00:08:46]} {[%emt 00:00:07]} 19.
e5 {[%clk 00:09:46]} {[%emt 00:00:03]} fxe5 {[%clk 00:08:36]} {[%emt 00:00:14]}
20. Bxe5 {[%clk 00:09:28]} {[%emt 00:00:22]} Bxa3 {[%clk 00:08:05]} {[%emt
00:00:36]} 21. Rc7 {[%clk 00:09:21]} {[%emt 00:00:12]} Nd7 {[%clk 00:07:55]}
{[%emt 00:00:16]} 22. Ng5 {[%clk 00:09:14]} {[%emt 00:00:12]} Nxe5 {[%clk
00:07:34]} {[%emt 00:00:26]} 23. Bxh7+ {[%clk 00:09:00]} {[%emt 00:00:19]} Kh8
{[%clk 00:07:38]} {[%emt 00:00:02]} 24. Be4 {[%clk 00:08:48]} {[%emt 00:00:13]}
Bd6 {[%clk 00:07:13]} {[%emt 00:00:32]} 25. Rc2 {[%clk 00:08:43]} {[%emt
00:00:09]} Rb8 {[%clk 00:07:03]} {[%emt 00:00:17]} 26. Rc3 {[%clk 00:08:16]}
{[%emt 00:00:32]} Ng4 {[%clk 00:05:14]} {[%emt 00:01:54]} 27. Rh3+ {[%clk
00:07:35]} {[%emt 00:00:46]} Nh6 {[%clk 00:05:10]} {[%emt 00:00:09]} 28. Bg6
{[%clk 00:07:29]} {[%emt 00:00:10]} b5 {[%clk 00:04:30]} {[%emt 00:00:46]} 29.
Nf7+ {[%clk 00:07:28]} {[%emt 00:00:06]} Kg8 {[%clk 00:04:33]} {[%emt
00:00:02]} 30. Nxd6 {[%clk 00:07:28]} {[%emt 00:00:05]} Rb6 {[%clk 00:04:16]}
{[%emt 00:00:22]} 31. Ne4 {[%clk 00:05:42]} {[%emt 00:01:51]} e5 {[%clk
00:03:58]} {[%emt 00:00:23]} 32. Rb3 {[%clk 00:05:27]} {[%emt 00:00:20]} Rxg6
{[%clk 00:03:53]} {[%emt 00:00:11]} 33. Rxb5 {[%clk 00:05:27]} {[%emt
00:00:05]} Ba6 {[%clk 00:03:55]} {[%emt 00:00:02]} 34. Rxe5 {[%clk 00:05:21]}
{[%emt 00:00:11]} Bxf1 {[%clk 00:03:58]} {[%emt 00:00:02]} 35. Kxf1 {[%clk
00:05:16]} {[%emt 00:00:03]} Ng4 {[%clk 00:03:59]} {[%emt 00:00:11]} 36. Re7
{[%clk 00:05:07]} {[%emt 00:00:15]} Nxh2+ {[%clk 00:03:52]} {[%emt 00:00:12]}
37. Kg1 {[%clk 00:05:09]} {[%emt 00:00:03]} Nf3+ {[%clk 00:03:54]} {[%emt
00:00:02]} 38. Kf1 {[%clk 00:05:06]} {[%emt 00:00:08]} Ng5 {[%clk 00:03:34]}
{[%emt 00:00:25]} 39. Nxg5 {[%clk 00:05:07]} {[%emt 00:00:03]} Rxg5 {[%clk
00:03:37]} {[%emt 00:00:03]} 40. Rxa7 {[%clk 00:05:11]} {[%emt 00:00:01]} Re5
{[%clk 00:03:28]} {[%emt 00:00:14]} 41. Ra2 {[%clk 00:05:07]} {[%emt 00:00:09]}
Rfe8 {[%emt 00:00:04]} 42. g3 {[%clk 00:05:08]} {[%emt 00:00:02]} Kf7 {[%clk
00:03:34]} {[%emt 00:00:02]} 43. Kg2 {[%clk 00:05:10]} {[%emt 00:00:03]} Kf6
{[%clk 00:03:38]} {[%emt 00:00:02]} 44. Ra6+ {[%clk 00:05:12]} {[%emt
00:00:03]} Kf5 {[%clk 00:03:38]} {[%emt 00:00:04]} 45. Kf3 {[%clk 00:04:54]}
{[%emt 00:00:22]} Kg5 {[%clk 00:03:29]} {[%emt 00:00:15]} 46. Kg2 {[%clk
00:04:54]} {[%emt 00:00:05]} Re2 {[%clk 00:03:31]} {[%emt 00:00:03]} 47. Kf3
{[%emt 00:00:09]} Rb2 {[%emt 00:00:21]} 48. Ra5+ {[%clk 00:04:24]} {[%emt
00:00:06]} Kh6 {[%clk 00:03:11]} {[%emt 00:00:25]} 49. Rf5 {[%clk 00:04:18]}
{[%emt 00:00:09]} Ree2 {[%clk 00:03:13]} {[%emt 00:00:04]} 50. Kg2 {[%clk
00:04:21]} {[%emt 00:00:02]} g6 {[%clk 00:03:16]} {[%emt 00:00:03]} 51. Rf4
{[%clk 00:04:15]} {[%emt 00:00:10]} Kg5 {[%clk 00:03:17]} {[%emt 00:00:04]} 52.
Rf8 {[%clk 00:04:17]} {[%emt 00:00:04]} Re1 {[%clk 00:03:15]} {[%emt 00:00:06]}
53. Rf4 {[%clk 00:04:11]} {[%emt 00:00:11]} Rbb1 {[%clk 00:03:17]} {[%emt
00:00:03]} 54. Rc4 {[%clk 00:04:08]} {[%emt 00:00:08]} Rg1+ {[%clk 00:03:08]}
{[%emt 00:00:14]} 55. Kh2 {[%clk 00:03:58]} {[%emt 00:00:14]} Kf5 {[%clk
00:02:51]} {[%emt 00:00:23]} 56. Rc5+ {[%clk 00:03:52]} {[%emt 00:00:11]} Ke4
{[%clk 00:02:52]} {[%emt 00:00:04]} 57. Rc8 {[%clk 00:03:53]} {[%emt 00:00:04]}
Kf3 {[%clk 00:02:49]} {[%emt 00:00:07]} 58. Rf8+ {[%emt 00:00:03]} Kg4 {[%emt
00:00:04]} 59. Rf4+ {[%clk 00:03:48]} {[%emt 00:00:03]} Kg5 {[%clk 00:02:49]}
{[%emt 00:00:06]} 60. Rf8 {[%clk 00:03:48]} {[%emt 00:00:06]} Kh5 {[%clk
00:02:49]} {[%emt 00:00:05]} 61. Rh8+ {[%clk 00:03:48]} {[%emt 00:00:04]} Kg4
{[%clk 00:02:42]} {[%emt 00:00:12]} 62. Rh4+ {[%clk 00:03:49]} {[%emt
00:00:04]} Kf3 {[%clk 00:02:32]} {[%emt 00:00:15]} 63. Rf4+ {[%clk 00:03:49]}
{[%emt 00:00:04]} Ke2 {[%clk 00:02:35]} {[%emt 00:00:03]} 64. Re4+ {[%clk
00:03:20]} {[%emt 00:00:32]} Kxf2 {[%clk 00:02:38]} {[%emt 00:00:03]} 65. Rf4+
{[%clk 00:03:24]} {[%emt 00:00:01]} Ke3 {[%clk 00:02:38]} {[%emt 00:00:05]} 0-1

[Event "Rapid Tournament (RAP)"]
[Site "Biel, Switzerland"]
[Date "2026.07.12"]
[Round "8.45"]
[White "Guidi, Elia"]
[Black "Tcheau, Alain"]
[Result "0-1"]
[TimeControl "15 + 5"]
[WhiteTitle "-"]
[BlackTitle "-"]
[WhiteFideId "1351931"]
[BlackFideId "1306014"]
[WhiteElo "1627"]
[BlackElo "1932"]

1. d4 {[%clk 00:15:08]} c6 {[%clk 00:15:08]} {[%emt 01:01:15]} 2. c4 {[%clk
00:15:03]} {[%emt 00:00:04]} e6 {[%clk 00:15:12]} {[%emt 00:00:01]} 3. Nc3
{[%clk 00:15:06]} {[%emt 00:00:02]} d5 {[%clk 00:15:16]} {[%emt 00:00:01]} 4.
Nf3 {[%clk 00:15:04]} {[%emt 00:00:07]} Nf6 {[%clk 00:15:20]} {[%emt 00:00:02]}
5. Bg5 {[%clk 00:15:00]} {[%emt 00:00:08]} Be7 {[%clk 00:15:23]} {[%emt
00:00:02]} 6. e3 {[%clk 00:15:02]} {[%emt 00:00:03]} O-O {[%clk 00:15:26]}
{[%emt 00:00:02]} 7. Bd3 {[%clk 00:15:02]} {[%emt 00:00:05]} h6 {[%clk
00:15:25]} {[%emt 00:00:06]} 8. Bh4 {[%clk 00:15:00]} {[%emt 00:00:07]} Nh5
{[%clk 00:14:52]} {[%emt 00:00:38]} 9. Bxe7 {[%clk 00:14:58]} {[%emt 00:00:06]}
Qxe7 {[%clk 00:14:56]} {[%emt 00:00:02]} 10. O-O {[%clk 00:14:58]} {[%emt
00:00:05]} Nf6 {[%clk 00:14:59]} {[%emt 00:00:02]} 11. Rc1 {[%clk 00:14:53]}
{[%emt 00:00:10]} Nbd7 {[%clk 00:14:55]} {[%emt 00:00:08]} 12. Re1 {[%clk
00:14:49]} {[%emt 00:00:10]} a6 {[%clk 00:14:57]} {[%emt 00:00:03]} 13. e4
{[%clk 00:14:22]} {[%emt 00:00:32]} dxe4 {[%clk 00:15:00]} {[%emt 00:00:02]} 14.
Nxe4 {[%clk 00:14:24]} {[%emt 00:00:03]} Nxe4 {[%clk 00:15:03]} {[%emt
00:00:03]} 15. Rxe4 {[%clk 00:14:09]} {[%emt 00:00:19]} Nf6 {[%clk 00:14:58]}
{[%emt 00:00:10]} 16. Re3 {[%clk 00:14:04]} {[%emt 00:00:10]} Bd7 {[%clk
00:14:52]} {[%emt 00:00:11]} 17. Qb3 {[%clk 00:13:55]} {[%emt 00:00:14]} b5
{[%clk 00:14:41]} {[%emt 00:00:17]} 18. Ne5 {[%clk 00:13:34]} {[%emt 00:00:25]}
Rfc8 {[%clk 00:14:21]} {[%emt 00:00:25]} 19. Nxd7 {[%clk 00:11:34]} {[%emt
00:02:05]} Qxd7 {[%clk 00:14:22]} {[%emt 00:00:04]} 20. Rd1 {[%clk 00:10:15]}
{[%emt 00:01:24]} 0-1